bitfinex/quotes_ETHUSD_20250222
["timestamp","ask_amount","ask_price","bid_price","bid_amount"]
[1740231836263,3.66274,2730.2,2730.1,0.09705157]
[1740231836461,3.66274,2730.2,2729.7,0.7627]
[1740231836766,3.66274,2730.2,2730.1,0.09705157]
[1740231836948,3.66274,2730.2,2729.7,0.7627]
[1740231837564,3.66274,2730.2,2729.8,0.0971374]
[1740231837931,3.66274,2730.2,2729.7,0.7627]
[1740231838132,3.66274,2730.2,2729.9,0.09710879]
[1740231838332,3.66274,2730.2,2729.8,0.0971374]
[1740231838650,3.66286,2730.1,2729.9,0.09710879]
[1740231838959,3.66286,2730.1,2729.7,1.737313]
[1740231839131,3.66274,2730.2,2730.0,0.09708018]
[1740231839333,3.66289,2730.1,2729.7,0.7627]
[1740231839885,3.66318,2729.9,2729.6,5.32]
[1740231840084,3.6634,2729.7,2729.6,5.32]
[1740231840894,3.66327,2729.8,2729.6,5.32]
[1740231841047,7.92598927,2730.0,2729.6,5.32]
[1740231841355,3.66322,2729.9,2729.6,5.32]
[1740231841688,3.66329,2729.8,2729.6,5.32]
[1740231842369,7.32668,2729.8,2729.6,5.32]
[1740231842888,3.6634,2729.7,2729.6,5.32]
[1740231843995,3.66357,2729.6,2729.3,0.7627]
[1740231846794,3.66369,2729.5,2728.9,4.42395]
[1740231846997,3.66369,2729.5,2728.9,6.0795]
[1740231847294,0.8085,2729.4,2728.9,6.0795]
[1740231847502,3.66397,2729.3,2728.9,6.0795]
[1740231847668,0.8085,2729.4,2729.0,0.09192081]
[1740231850072,3.66399,2729.3,2729.0,0.09192081]
[1740231850666,0.8085,2729.4,2729.0,0.09192081]
[1740231851697,4.47231,2729.4,2729.0,0.09192081]
[1740231853201,5.11814616,2729.4,2729.0,0.09192081]
[1740231853697,3.0,2729.5,2729.0,0.09192081]
[1740231853867,3.0,2729.6,2729.1,3.66412]
[1740231854201,3.0,2729.6,2729.1,3.7568024]
[1740231854498,3.0,2729.7,2729.2,0.8208]
[1740231854703,3.66308,2730.0,2729.3,3.66381]
[1740231854908,3.66308,2730.0,2729.4,4.86023638]
[1740231855076,3.66308,2730.0,2729.4,4.95305026]
[1740231855277,3.0,2729.9,2729.5,3.66366]
[1740231855608,3.8124,2730.1,2729.5,5.41278526]
[1740231855986,4.47528,2730.1,2729.5,9.07637526]
[1740231856182,4.47528,2730.1,2729.5,10.47003642]
[1740231856606,4.27261927,2730.3,2729.7,3.66329]
[1740231856904,7.12281927,2730.3,2729.7,7.3266]
[1740231857091,7.12281927,2730.3,2729.8,0.09234376]
[1740231857298,7.12281927,2730.3,2729.7,7.3266]
[1740231857498,3.46021927,2730.3,2729.9,0.09231515]
[1740231857705,3.46021927,2730.3,2729.8,0.09234376]
[1740231857918,7.12282927,2730.3,2729.7,3.66329]
[1740231858068,3.66276,2730.2,2729.9,0.09231515]
[1740231858273,3.66276,2730.2,2729.7,3.66329]
[1740231858604,3.46021927,2730.3,2730.0,0.09228654]
[1740231858804,7.12284927,2730.3,2729.7,3.66329]
[1740231858976,7.12284927,2730.3,2730.1,0.09225793]
[1740231859177,7.12284927,2730.3,2729.7,3.66329]
[1740231859377,10.12284927,2730.3,2730.2,0.09222933]
[1740231859585,6.46021927,2730.3,2729.7,3.66329]
[1740231859788,6.46021927,2730.3,2730.2,0.09222933]
[1740231860302,10.12281927,2730.3,2729.7,4.643699]
[1740231860617,10.12281927,2730.3,2730.2,0.09222933]
[1740231860808,10.12281927,2730.3,2729.7,3.66329]
[1740231860978,10.12281927,2730.3,2730.2,0.09222933]
[1740231861179,10.12281927,2730.3,2729.7,3.66329]
[1740231861379,10.12281927,2730.3,2730.2,0.09222933]
[1740231861580,10.12281927,2730.3,2729.7,7.3266]
[1740231861794,10.12281927,2730.3,2730.2,0.09222933]
[1740231862006,10.12281927,2730.3,2729.7,7.3266]
[1740231862007,6.46021927,2730.3,2729.9,3.66313]
[1740231862308,3.0,2730.3,2730.0,4.49279]
[1740231862509,3.0,2730.3,2730.0,5.40006482]
[1740231862709,3.0,2730.3,2730.1,3.66284]
[1740231862880,3.0,2730.3,2730.1,0.09166522]
[1740231863281,3.0,2730.5,2730.1,3.75449522]
[1740231864478,3.0,2730.5,2730.1,0.09166522]
[1740231864902,3.0,2730.5,2730.1,3.75452522]
[1740231865086,3.0,2730.5,2730.1,1.16366584]
[1740231865305,3.0,2730.5,2730.3,3.66252]
[1740231865502,3.0,2730.5,2730.4,0.7659]
[1740231865823,3.0,2730.5,2730.4,0.85705472]
[1740231867708,4.23821927,2730.9,2730.4,0.85705472]
[1740231867897,7.90009927,2730.9,2730.4,0.85705472]
[1740231868219,6.66195,2730.8,2730.4,0.85705472]
[1740231868594,10.32398,2730.8,2730.4,0.85705472]
[1740231868795,6.66195,2730.8,2730.4,0.85705472]
[1740231869024,3.0,2730.7,2730.4,0.85705472]
[1740231870719,3.0,2730.7,2730.4,4.51951472]
[1740231870941,3.0,2730.7,2730.4,0.85705472]
[1740231871736,3.0,2730.7,2730.4,4.51947472]
[1740231871910,3.0,2730.7,2730.4,0.85705472]
[1740231873205,3.0,2730.7,2730.4,4.51950472]
[1740231873408,3.0,2730.7,2730.4,0.85705472]
[1740231873708,3.0,2730.7,2730.4,4.51950472]
[1740231873897,4.23821927,2730.9,2730.4,4.51950472]
[1740231874626,3.0,2730.8,2730.4,4.51950472]
[1740231876627,3.0,2730.8,2730.4,0.85705472]
[1740231878839,6.662,2730.8,2730.4,0.85705472]
[1740231879003,8.11820093,2730.8,2730.4,0.85705472]
[1740231879501,4.45620093,2730.8,2730.4,0.85705472]
[1740231879930,4.45620093,2730.8,2730.4,0.09115472]
[1740231880131,3.66224,2730.6,2730.4,0.09115472]
[1740231880328,3.66224,2730.6,2730.2,5.32]
[1740231880605,3.66224,2730.6,2730.3,0.09053163]
[1740231880967,3.66224,2730.6,2730.2,5.32]
[1740231881135,3.66224,2730.6,2730.4,0.09050303]
[1740231881448,3.66224,2730.6,2730.2,5.32]
[1740231881616,3.66224,2730.6,2730.5,0.09047443]
[1740231881822,3.66224,2730.6,2730.2,5.32]
[1740231882018,3.66224,2730.6,2730.5,0.09047443]
[1740231882219,6.66198,2730.8,2730.2,8.98273]
[1740231882425,6.66198,2730.8,2730.5,0.09047443]
[1740231882749,7.3899188,2730.8,2730.6,0.09044583]
[1740231883245,7.3899188,2730.8,2730.2,8.98265]
[1740231883413,6.66198,2730.8,2730.7,0.09041724]
[1740231883615,6.66198,2730.8,2730.2,8.98265]
[1740231883814,6.66198,2730.8,2730.7,0.09041724]
[1740231884055,6.66198,2730.8,2730.2,8.98265]
[1740231884244,6.66198,2730.8,2730.7,0.09041724]
[1740231884415,8.11817393,2730.8,2730.2,8.98265]
[1740231884612,6.66198,2730.8,2730.7,0.09041724]
[1740231885254,6.66198,2730.8,2730.2,12.64531]
[1740231885425,6.66198,2730.8,2730.7,0.09041724]
[1740231885614,6.66198,2730.8,2730.2,8.98265]
[1740231885816,6.66198,2730.8,2730.7,0.09041724]
[1740231886015,6.66198,2730.8,2730.2,8.98262]
[1740231886016,8.11817393,2730.8,2730.2,8.98262]
[1740231886241,3.0,2730.8,2730.7,0.09041724]
[1740231886541,3.66174,2731.0,2730.7,0.09041724]
[1740231886542,3.0,2731.0,2730.7,0.09041724]
[1740231886749,3.0,2731.0,2730.5,4.44481]
[1740231887050,3.0,2731.0,2730.6,3.75260583]
[1740231887959,3.0,2731.0,2730.6,3.75252583]
[1740231888127,3.46021927,2731.3,2730.8,3.6618]
[1740231888445,0.782,2731.4,2731.0,3.66165]
[1740231888647,7.484,2731.5,2731.2,3.66137]
[1740231889015,7.484,2731.5,2731.1,0.87275352]
[1740231889016,3.0,2731.4,2731.3,0.08991007]
[1740231889350,7.484,2731.5,2731.1,0.7825]
[1740231889516,7.484,2731.5,2731.2,0.08993865]
[1740231889714,3.0,2731.4,2731.2,0.08993865]
[1740231890445,3.0,2731.4,2730.9,0.7825]
[1740231890748,3.0,2731.4,2730.9,4.888729]
[1740231890950,3.0,2731.4,2731.0,0.08999582]
[1740231891551,6.66112,2731.4,2731.0,0.08999582]
[1740231891854,7.12147927,2731.3,2731.0,0.08999582]
[1740231892019,4.44342,2731.2,2731.0,0.08999582]
[1740231892235,4.44342,2731.2,2731.1,0.08996724]
[1740231892441,4.44342,2731.2,2730.7,0.7825]
[1740231892661,4.44342,2731.2,2730.8,0.090053]
[1740231892863,4.44342,2731.2,2730.7,1.758968]
[1740231893175,4.44342,2731.2,2730.8,0.090053]
[1740231893337,3.66152,2731.1,2730.8,0.090053]
[1740231893534,4.44342,2731.2,2730.7,1.758968]
[1740231893782,4.44342,2731.2,2730.8,0.090053]
[1740231894089,4.44342,2731.2,2730.7,1.758968]
[1740231894287,4.44342,2731.2,2730.8,0.090053]
[1740231894491,4.44342,2731.2,2730.7,1.758968]
[1740231894843,4.44342,2731.2,2730.8,0.090053]
[1740231895038,4.44342,2731.2,2730.7,0.7825]
[1740231895582,4.44342,2731.2,2730.8,0.08989508]
[1740231895942,4.44342,2731.2,2730.7,0.7825]
[1740231896144,4.44342,2731.2,2730.8,0.08993456]
[1740231896377,4.44342,2731.2,2730.7,0.7825]
[1740231896584,4.44342,2731.2,2730.9,0.08990597]
[1740231896778,4.44342,2731.2,2730.8,0.08993456]
[1740231897088,4.44342,2731.2,2730.9,0.08990597]
[1740231897375,4.44342,2731.2,2730.7,0.7825]
[1740231897579,4.44342,2731.2,2731.0,0.08987738]
[1740231897778,4.44342,2731.2,2730.7,0.7825]
[1740231897983,4.44342,2731.2,2731.1,0.0898488]
[1740231898186,4.44342,2731.2,2730.7,0.7825]
[1740231898397,4.44342,2731.2,2731.1,0.0898488]
[1740231898545,4.44342,2731.2,2730.7,0.7825]
[1740231898876,4.44342,2731.2,2730.6,5.32]
[1740231899186,3.46021927,2731.0,2730.7,0.08942024]
[1740231899385,0.782,2730.8,2730.7,0.08942024]
[1740231899886,4.44393,2730.8,2730.3,5.32]
[1740231900180,4.44393,2730.8,2730.4,0.08950603]
[1740231900690,0.782,2730.8,2730.4,0.08950603]
[1740231902081,0.782,2730.8,2730.4,1.40995763]
[1740231902382,3.46021927,2731.0,2730.7,0.7825]
[1740231902557,0.782,2731.2,2730.7,0.7825]
[1740231902558,0.782,2731.2,2730.7,4.44455]
[1740231902762,3.46021927,2731.3,2730.8,3.75146918]
[1740231903779,7.12148927,2731.3,2730.8,0.08957918]
[1740231904287,7.12148927,2731.3,2730.7,4.44454]
[1740231904484,7.12148927,2731.3,2730.8,0.08957918]
[1740231904783,7.12148927,2731.3,2730.7,5.787219]
[1740231904989,7.12148927,2731.3,2730.9,0.08955059]
[1740231905189,7.12148927,2731.3,2730.8,0.08957918]
[1740231905390,7.12148927,2731.3,2731.0,0.089522]
[1740231905566,7.12148927,2731.3,2730.9,0.08955059]
[1740231905765,7.12148927,2731.3,2730.7,9.449209]
[1740231906072,7.12148927,2731.3,2730.8,0.59271136]
[1740231906481,4.44379,2730.9,2730.8,0.08957918]
[1740231906677,0.782,2730.9,2730.5,5.32]
[1740231906890,7.32399,2730.8,2730.5,5.32]
[1740231907077,3.66196,2730.8,2730.6,0.08963637]
[1740231908454,3.46021927,2730.7,2730.6,0.08963637]
[1740231908693,3.46021927,2730.7,2730.3,3.66259]
[1740231908893,4.44383,2730.9,2730.3,4.473374]
[1740231909081,0.782,2730.9,2730.4,3.75198577]
[1740231909593,3.776,2731.1,2730.5,3.66232]
[1740231909766,3.0,2731.1,2730.6,0.8308]
[1740231909968,6.66163,2731.1,2730.7,0.08990387]
[1740231910152,7.12201927,2730.9,2730.7,0.08990387]
[1740231910352,3.46021927,2730.9,2730.1,3.66277]
[1740231910662,3.46021927,2730.9,2730.5,3.66233]
[1740231910977,3.0,2731.1,2730.6,3.75209247]
[1740231911178,3.0,2731.1,2730.6,3.75204247]
[1740231911487,3.0,2731.1,2730.6,4.74232672]
[1740231911697,3.0,2731.4,2730.8,3.66192]
[1740231911991,3.46021927,2731.5,2731.1,4.49229]
[1740231912192,7.481,2732.0,2731.1,0.8308]
[1740231912193,0.776,2731.9,2731.1,0.8308]
[1740231912350,4.48639,2731.8,2731.2,0.08976093]
[1740231912554,3.66074,2731.7,2731.2,0.08976093]
[1740231912755,3.0,2731.5,2731.2,0.08976093]
[1740231914298,3.0,2731.6,2731.2,0.08976093]
[1740231914797,3.0,2731.6,2731.2,3.75111093]
[1740231914996,3.0,2731.6,2731.2,4.57545602]
[1740231915179,3.0,2731.6,2731.3,3.66115]
[1740231915386,3.0,2731.6,2731.3,3.66123]
[1740231915585,3.0,2731.6,2731.4,0.08935832]
[1740231916598,3.0,2731.6,2731.4,3.66109]
[1740231916895,3.0,2731.6,2731.5,0.08932974]
[1740231917111,10.94121927,2732.0,2731.6,0.8308]
[1740231917465,10.94121927,2732.0,2731.7,0.08884831]
[1740231917665,3.0,2731.9,2731.7,0.08884831]
[1740231917862,6.66059,2731.8,2731.7,0.08884831]
[1740231918079,3.0,2731.7,2731.0,0.8308]
[1740231918412,3.46021927,2731.5,2731.2,0.08900106]
[1740231918710,3.66098,2731.6,2731.2,0.08900106]
[1740231918871,7.12119927,2731.6,2731.2,0.08900106]
[1740231921022,3.46021927,2731.6,2731.2,3.75037106]
[1740231921183,3.46021927,2731.6,2731.3,1.27318711]
[1740231921710,3.46021927,2731.6,2731.4,0.08583379]
[1740231921889,6.46021927,2731.9,2731.5,0.8308]
[1740231922290,6.46021927,2731.9,2731.6,0.08577664]
[1740231925128,7.481,2732.0,2731.6,0.08577664]
[1740231925327,7.481,2732.0,2731.6,0.5435293]
[1740231925632,3.0,2731.9,2731.6,0.5435293]
[1740231926193,7.481,2732.0,2731.6,0.5435293]
[1740231926528,7.481,2732.0,2731.6,3.74660664]
[1740231927489,7.481,2732.0,2731.7,0.8195]
[1740231927697,7.481,2732.0,2731.8,0.08478206]
[1740231927925,7.481,2732.0,2731.7,0.8195]
[1740231928125,7.481,2732.0,2731.8,0.08478206]
[1740231928332,6.67837,2732.3,2731.8,0.45651121]
[1740231928534,6.67837,2732.3,2731.9,0.08475349]
[1740231928829,6.66032,2732.0,2731.9,0.08475349]
[1740231929862,7.47452,2732.0,2731.9,0.08475349]
[1740231930224,3.66108,2731.5,2731.3,0.8195]
[1740231930555,3.66108,2731.5,2731.4,0.07877944]
[1740231930769,7.12119927,2731.6,2731.4,0.07877944]
[1740231931136,7.93539927,2731.6,2731.4,0.07877944]
[1740231931337,11.59636927,2731.6,2731.4,0.07877944]
[1740231931549,11.59636927,2731.6,2731.0,6.1395]
[1740231931550,10.93538927,2731.6,2731.5,0.07875086]
[1740231931761,10.93538927,2731.6,2731.0,6.1395]
[1740231932060,10.93538927,2731.6,2731.1,1.42515119]
[1740231932260,10.12118927,2731.6,2731.1,1.42515119]
[1740231932565,10.12118927,2731.6,2731.1,1.48266746]
[1740231933161,13.78215927,2731.6,2731.1,1.48266746]
[1740231933361,3.0,2731.6,2731.1,1.48266746]
[1740231933667,6.66095,2731.6,2731.2,0.76221675]
[1740231933848,6.66095,2731.6,2731.1,0.13638146]
[1740231934052,3.0,2731.6,2731.3,0.13638038]
[1740231934366,3.0,2731.6,2731.4,0.13634969]
[1740231934570,3.0,2731.6,2731.1,3.6615]
[1740231934729,3.0,2731.6,2731.2,0.90701107]
[1740231935055,3.0,2731.6,2731.2,5.55722218]
[1740231935560,3.66019,2732.1,2731.5,0.7706]
[1740231935861,3.0,2731.9,2731.6,0.13673223]
[1740231938573,3.46021927,2732.2,2731.6,0.13673223]
[1740231938732,3.46021927,2732.2,2731.8,3.6605]
[1740231939063,3.46021927,2732.2,2731.9,0.13664019]
[1740231939953,3.46021927,2732.2,2732.0,0.805]
[1740231940132,3.46021927,2732.2,2732.1,0.13657885]
[1740231940465,0.0184,2732.3,2732.1,0.13657885]
[1740231941347,3.46021927,2732.2,2732.1,0.13657885]
[1740231941547,3.46021927,2732.2,2731.8,6.125]
[1740231941735,3.46021927,2732.2,2731.9,0.13609766]
[1740231942539,7.12032927,2732.2,2731.9,0.13609766]
[1740231942981,3.46021927,2732.2,2731.9,0.13609766]
[1740231943363,3.46021927,2732.2,2731.9,3.79645766]
[1740231943772,3.46021927,2732.2,2731.9,0.13609766]
[1740231944083,3.46021927,2732.2,2732.0,0.99028425]
[1740231944282,0.0184,2732.3,2732.0,4.65059425]
[1740231944471,0.0184,2732.3,2732.1,4.59569909]
[1740231946273,0.0184,2732.3,2732.1,0.93551909]
[1740231947659,0.0184,2732.3,2732.1,4.59566909]
[1740231947864,0.0184,2732.3,2732.2,0.92461833]
[1740231948384,0.0184,2732.3,2732.2,1.05970675]
[1740231948574,0.0184,2732.3,2732.2,0.13508842]
[1740231953771,3.67832,2732.3,2732.2,0.13508842]
[1740231953970,3.67832,2732.3,2732.0,0.99028425]
[1740231954170,3.46021927,2732.2,2732.1,0.13511909]
[1740231955190,3.46021927,2732.2,2731.8,5.32]
[1740231955393,3.46021927,2731.9,2731.8,5.32]
[1740231955784,7.12066927,2731.9,2731.8,5.32]
[1740231956700,3.46021927,2732.2,2731.9,0.8321]
[1740231959197,3.46021927,2732.2,2731.8,5.32]
[1740231959384,7.12066927,2731.9,2731.8,5.32]
[1740231959999,3.46021927,2731.9,2731.2,0.7794]
[1740231960199,3.46021927,2731.9,2731.4,3.66101]
[1740231960769,3.46021927,2731.9,2731.3,4.637252]
[1740231960770,3.46021927,2731.6,2731.3,0.976082]
[1740231961193,0.8017,2731.5,2731.3,0.976082]
[1740231961382,0.8017,2731.5,2731.2,5.32]
[1740231961809,0.8017,2731.5,2731.0,0.7794]
[1740231961810,3.46021927,2731.3,2731.0,0.7794]
[1740231962001,3.66163,2731.1,2730.6,6.0994]
[1740231962181,3.46021927,2731.0,2730.6,7.075571]
[1740231962372,4.26191927,2731.0,2730.6,7.075571]
[1740231963273,3.46021927,2730.7,2730.6,5.32]
[1740231963471,3.46021927,2730.7,2730.3,5.32]
[1740231963663,0.8017,2730.6,2730.3,5.32]
[1740231964697,3.46021927,2730.4,2730.1,5.32]
[1740231966270,7.12268927,2730.4,2730.1,5.32]
[1740231966705,3.66289,2730.1,2729.6,5.32]
[1740231967010,3.46021927,2730.0,2729.6,5.32]
[1740231967407,0.8017,2729.9,2729.6,5.32]
[1740231967601,0.8017,2729.9,2729.7,0.12431998]
[1740231968010,3.46021927,2730.1,2729.7,3.78767998]
[1740231968208,3.46021927,2730.2,2729.7,1.03511898]
[1740231968431,3.66291,2730.1,2729.7,0.12431998]
[1740231968642,0.8017,2729.8,2729.7,0.12431998]
[1740231969014,0.8017,2729.8,2729.3,8.98393]
[1740231969202,7.12345927,2729.9,2729.4,0.12464877]
[1740231969203,3.46021927,2729.9,2729.4,0.12464877]
[1740231969530,3.46021927,2729.9,2729.4,3.78843877]
[1740231969706,3.46021927,2729.9,2729.4,0.12464877]
[1740231969910,3.66339,2729.8,2729.4,0.12464877]
[1740231970105,3.46021927,2729.9,2729.4,0.12464877]
[1740231970311,3.46021927,2729.9,2729.4,3.78841877]
[1740231972046,3.46021927,2730.2,2729.8,3.66318]
[1740231972399,3.0,2730.1,2729.9,0.12459374]
[1740231972907,3.46021927,2730.5,2730.0,3.66292]
[1740231973108,3.46021927,2730.2,2730.1,0.12613828]
[1740231973312,6.46021927,2730.2,2730.1,0.12613828]
[1740231973535,6.46021927,2730.2,2729.8,5.32]
[1740231973896,6.46021927,2730.2,2729.9,0.12602226]
[1740231974113,3.46021927,2730.2,2729.9,0.12602226]
[1740231974349,0.0184,2730.7,2730.3,3.66257]
[1740231974350,3.46021927,2730.5,2730.3,3.66257]
[1740231974637,3.46021927,2730.5,2730.4,3.78825969]
[1740231975002,0.0184,2730.7,2730.4,3.78825969]
[1740231975237,0.0184,2730.7,2730.4,0.12579969]
[1740231975614,3.47861927,2730.7,2730.2,4.44202]
[1740231975803,0.0184,2730.7,2730.6,3.66219]
[1740231976005,0.0184,2730.7,2730.6,0.12557071]
[1740231976203,4.28031927,2730.7,2730.2,6.0994]
[1740231976434,3.47861927,2730.7,2730.3,0.12566283]
[1740231976802,3.47861927,2730.7,2730.2,8.98263]
[1740231977136,3.47861927,2730.7,2730.3,3.78824283]
[1740231977300,0.0184,2730.7,2730.4,3.66238]
[1740231977736,0.0184,2730.7,2730.5,0.12560141]
[1740231978335,0.0184,2730.7,2730.6,3.66219]
[1740231978749,0.0184,2730.7,2730.6,3.78776071]
[1740231978952,0.0184,2730.7,2730.6,0.12557071]
[1740231979114,0.0184,2730.7,2730.4,3.66235]
[1740231979314,0.0184,2730.7,2730.6,3.66219]
[1740231979520,0.0184,2730.7,2730.6,3.78776071]
[1740231980041,0.0184,2730.7,2730.6,9.10776071]
[1740231980241,0.0184,2730.7,2730.6,9.89756071]
[1740231981227,0.0184,2730.7,2730.6,10.44756071]
[1740231981433,0.0184,2730.7,2730.6,11.63580664]
[1740231981760,1e-05,2730.7,2730.6,11.63580664]
[1740231981921,1e-05,2730.7,2730.6,17.98580664]
[1740231982248,1e-05,2730.7,2730.6,18.28580664]
[1740231982655,1e-05,2730.7,2730.6,18.9241918]
[1740231982816,1e-05,2730.7,2730.6,18.28580664]
[1740231983340,1e-05,2730.7,2730.6,18.9241918]
[1740231983518,1e-05,2730.7,2730.6,18.28580664]
[1740231984751,1e-05,2730.7,2730.6,17.71980664]
[1740231984960,1e-05,2730.7,2730.6,17.98580664]
[1740231985915,1e-05,2730.7,2730.6,18.28580664]
[1740231986113,1e-05,2730.7,2730.6,17.43580664]
[1740231986355,1e-05,2730.7,2730.6,14.43580664]
[1740231986595,1e-05,2730.7,2730.6,14.98580664]
[1740231988595,1e-05,2730.7,2730.6,14.98680664]
[1740231990007,1e-05,2730.7,2730.6,15.08680664]
[1740231994916,1e-05,2730.7,2730.6,14.43680664]
[1740231995123,1e-05,2730.7,2730.6,14.16980664]
[1740231995482,1e-05,2730.7,2730.6,14.98580664]
[1740231996884,1e-05,2730.7,2730.6,14.19600664]
[1740231998214,1e-05,2730.7,2730.6,14.96520664]
[1740232001837,1e-05,2730.7,2730.6,14.14920664]
[1740232002137,1e-05,2730.7,2730.6,14.41520664]
[1740232002340,1e-05,2730.7,2730.6,14.19600664]
[1740232002544,1e-05,2730.7,2730.6,13.38000664]
[1740232009173,1e-05,2730.7,2730.6,13.93000664]
[1740232018647,1e-05,2730.7,2730.6,13.38000664]
[1740232020279,1e-05,2730.7,2730.6,9.71781664]
[1740232020448,0.82441,2730.7,2730.6,8.79557071]
[1740232021544,0.82441,2730.7,2730.6,5.44557071]
[1740232022157,3.66207,2730.7,2730.6,5.44557071]
[1740232022359,0.82441,2730.7,2730.6,5.44557071]
[1740232022576,8.28112393,2730.7,2730.6,5.44557071]
[1740232023247,8.28112393,2730.7,2729.7,3.92828]
[1740232023248,3.66249,2730.4,2730.0,5.32]
[1740232023448,0.7998,2730.3,2730.1,0.10376331]
[1740232025661,0.7998,2730.3,2730.1,3.76659331]
[1740232026464,0.7998,2730.3,2730.1,0.10376331]
[1740232028853,0.7998,2730.3,2730.1,3.76662331]
[1740232034707,0.7998,2730.3,2730.1,0.10376331]
[1740232035204,0.8224,2730.6,2730.3,3.66249]
[1740232035408,1e-05,2730.7,2730.5,3.66233]
[1740232035608,1e-05,2730.7,2730.6,3.66219]
[1740232035777,1e-05,2730.7,2730.6,9.08615283]
[1740232036336,1e-05,2730.7,2730.6,5.42396283]
[1740232036610,1e-05,2730.7,2730.6,9.08615283]
[1740232036977,1e-05,2730.7,2730.6,5.42396283]
[1740232037511,1e-05,2730.7,2730.6,9.08615283]
[1740232039608,1e-05,2730.7,2730.6,10.36099211]
[1740232041783,1e-05,2730.7,2730.6,6.69880211]
[1740232042016,1e-05,2730.7,2730.6,5.42396283]
[1740232044746,1e-05,2730.7,2730.6,9.08615283]
[1740232047021,1e-05,2730.7,2730.6,5.40556283]
[1740232047690,1e-05,2730.7,2730.6,9.06775283]
[1740232050287,1e-05,2730.7,2730.6,5.40556283]
[1740232051512,1e-05,2730.7,2730.6,9.06775283]
[1740232052443,1e-05,2730.7,2730.6,10.34075011]
[1740232052644,1e-05,2730.7,2730.6,5.40556283]
[1740232053452,0.78901,2730.7,2730.6,5.40556283]
[1740232053593,3.78901,2730.7,2730.6,5.40556283]
[1740232053948,7.43825,2730.7,2730.6,5.40556283]
[1740232054150,3.77619,2730.7,2730.6,5.40556283]
[1740232054956,3.77619,2730.7,2730.6,0.08556283]
[1740232055301,3.0,2730.6,2730.4,3.66246]
[1740232055856,3.77619,2730.7,2730.4,3.66246]
[1740232057836,3.77619,2730.7,2730.5,0.10301272]
[1740232059325,3.77619,2730.7,2730.4,3.66246]
[1740232059498,3.77619,2730.7,2730.6,0.10298201]
[1740232059936,3.77619,2730.7,2730.4,3.66246]
[1740232060147,3.77619,2730.7,2730.6,0.10303105]
[1740232060343,3.77619,2730.7,2730.5,0.10306175]
[1740232060506,3.77619,2730.7,2730.6,0.10303105]
[1740232060935,3.77619,2730.7,2730.3,8.98259]
[1740232061109,3.77619,2730.7,2730.6,0.10303105]
[1740232061309,3.77619,2730.7,2730.3,5.32]
[1740232061553,3.77619,2730.7,2730.6,0.10303105]
[1740232061805,7.43825,2730.7,2730.3,5.32]
[1740232061973,7.43825,2730.7,2730.6,0.10303105]
[1740232062153,7.43825,2730.7,2730.3,5.32]
[1740232062354,3.77619,2730.7,2730.6,0.10303105]
[1740232062704,3.77619,2730.7,2730.3,8.98257]
[1740232063055,3.77619,2730.7,2730.4,0.1031513]
[1740232063853,7.12254927,2730.5,2730.4,0.1031513]
[1740232064048,3.0,2730.4,2730.1,5.32]
[1740232064252,4.22851927,2730.2,2730.1,5.32]
[1740232065178,7.89124927,2730.2,2730.1,5.32]
[1740232065994,4.22851927,2730.2,2730.1,5.32]
[1740232067705,0.7683,2730.5,2730.1,5.92395242]
[1740232067905,0.7683,2730.5,2730.1,9.58681242]
[1740232068093,0.7683,2730.5,2730.1,13.24958242]
[1740232068299,0.7683,2730.5,2730.2,3.66272]
[1740232068471,0.7683,2730.7,2730.5,3.66225]
[1740232068804,0.7683,2730.7,2730.4,3.66246]
[1740232068805,0.7683,2730.7,2730.6,3.66219]
[1740232068992,0.7683,2731.0,2730.8,3.66192]
[1740232069773,3.0,2731.0,2730.8,3.66184]
[1740232070615,3.0,2731.2,2730.8,3.66184]
[1740232071097,3.0,2731.2,2730.6,4.394585]
[1740232071098,3.0,2731.2,2730.9,3.66174]
[1740232072711,3.0,2731.2,2731.0,0.09947362]
[1740232073925,3.0,2731.2,2731.1,0.7227678]
[1740232074429,3.0,2731.2,2731.1,0.82221073]
[1740232075622,3.0,2731.2,2731.1,0.09944293]
[1740232076286,3.46021927,2731.3,2731.1,4.45614107]
[1740232077797,6.46021927,2731.3,2731.2,3.66139]
[1740232078002,3.46021927,2731.3,2731.1,3.71385978]
[1740232078201,3.46021927,2731.3,2731.2,0.09543963]
[1740232080222,3.46021927,2731.3,2731.2,3.75682963]
[1740232082707,3.46021927,2731.3,2731.2,4.54992963]
[1740232083047,3.46021927,2731.6,2731.2,4.54992963]
[1740232083203,6.46021927,2731.6,2731.2,0.09543963]
[1740232083541,7.26731927,2731.3,2731.2,0.09543963]
[1740232083711,6.46021927,2731.3,2731.2,0.09543963]
[1740232084128,6.46021927,2731.3,2730.9,5.585]
[1740232084327,6.46021927,2731.3,2731.2,0.09543963]
[1740232084642,6.46021927,2731.3,2730.9,9.24669]
[1740232084836,6.46021927,2731.3,2731.2,0.09492063]
[1740232085044,6.46021927,2731.3,2730.9,10.250669]
[1740232085237,6.46021927,2731.3,2731.2,0.09492063]
[1740232085948,6.46021927,2731.3,2731.2,3.75631063]
[1740232088631,6.46021927,2731.3,2731.2,0.09492063]
[1740232088833,10.12147927,2731.3,2731.2,0.09492063]
[1740232089143,15.48165647,2731.3,2731.2,0.09492063]
[1740232089514,3.8071,2731.2,2731.1,5.32]
[1740232089827,7.46849,2731.2,2731.1,5.41150485]
[1740232090013,3.8071,2731.2,2731.1,5.41150485]
[1740232090212,7.46849,2731.2,2731.1,5.41150485]
[1740232090408,8.67064672,2731.2,2731.1,5.41150485]
[1740232091212,8.67064672,2731.2,2731.1,0.09150485]
[1740232091617,8.67064672,2731.2,2730.5,3.66221]
[1740232091618,3.66157,2731.1,2730.5,3.66221]
[1740232091846,7.12190927,2731.0,2730.5,3.66221]
[1740232092638,0.8071,2730.9,2730.5,3.66221]
[1740232093529,0.8071,2730.9,2730.5,4.71433617]
[1740232094046,0.8071,2730.9,2730.5,1.05212617]